Cogmind - Beta 15 @@@ ROGUE MODE // 2025.05.23 @ 00:31:42 Player: H.1 Result: Destroyed by S-10 Pest with Light Assault Rifle Performance ------------- Evolutions (2) 1000 Regions Visited (5) 1000 Robots Destroyed (23) 115 Value Destroyed (670) 670 Prototype IDs (24) 480 Alien Tech Used (0) 0 Bonus (300) 300 TOTAL SCORE: 3565 Bonus ------- Aligned with FarCom 300 Cogmind --------- Core Integrity 0/550 Matter 300/300 Energy 43/100 System Corruption 0% Temperature Cool (0) Movement Core (150) Ox2 Location -8/Materials Parts ------- > --- POWER (2) -------- (None) > --- PROPULSION (2) --- (None) > --- UTILITY (5) ------ Small Storage Unit Targeting Computer ECM Suite > --- WEAPON (2) ------- (None) > --- INVENTORY (8) ---- Airjet ECM Suite Light Armor Plating Tractor Beam Small Laser Assault Rifle Peak State ------------ > --- POWER ------------ Ion Engine Light Ion Engine > --- PROPULSION ------- Wheel > --- UTILITY ---------- Small Storage Unit Seismic Detector ECM Suite Cloak of Protection > --- WEAPON ----------- Assault Cannon Assault Cannon > --- INVENTORY -------- Light Ion Engine ECM Suite Small Laser Assault Rifle Light Assault Rifle Improved Assault Rifle Light Cannon Grenade Launcher [Rating: 21] Favorites ----------- Power Light Ion Engine Engine Light Ion Engine Propulsion Wheel Treads Light Treads Wheel Wheel Hover Unit Airjet Utility Small Storage Unit Device Seismic Detector Storage Small Storage Unit Processor Targeting Computer Weapon Assault Rifle Energy Gun EM Pulse Gun Ballistic Gun Assault Rifle Ballistic Cannon Light Cannon Launcher Grenade Launcher Special Weapon Mining Laser Build | -11 -10 -10 -10 -9 -8 ------- Run | Yrd Mat Min Exi Min Mat Slots Evolved 4 | . . . . . 4 Power 1 | . . . . . 1 Propulsion . | . . . . . . Utility 3 | . . . . . 3 Weapon . | . . . . . . Parts Attached 27 | 7 4 2 1 . 13 Power 5 | 1 . . . . 4 Engine 5 | 1 . . . . 4 Core . | . . . . . . Reactor . | . . . . . . Propulsion 7 | 2 2 . . . 3 Treads 1 | . . . . . 1 Leg . | . . . . . . Wheel 5 | 2 2 . . . 1 Hover 1 | . . . . . 1 Flight . | . . . . . . Utility 6 | 1 1 . 1 . 3 Device 4 | . 1 . 1 . 2 Storage 1 | 1 . . . . . Processor 1 | . . . . . 1 Hackware . | . . . . . . Protection . | . . . . . . Artifact . | . . . . . . Weapon 9 | 3 1 2 . . 3 Energy Gun 1 | 1 . . . . . Energy Cannon . | . . . . . . Ballistic Gun 3 | 2 . . . . 1 Ballistic Cannon 3 | . . 1 . . 2 Launcher 1 | . . 1 . . . Special Weapon 1 | . 1 . . . . Impact Weapon . | . . . . . . Slashing Weapon . | . . . . . . Piercing Weapon . | . . . . . . Special Melee Weapon . | . . . . . . Unidentified Prototypes 1 | . . . . . 1 Parts Lost 18 | . 1 1 . . 16 Power 5 | . . . . . 5 Propulsion 4 | . 1 . . . 3 Utility 3 | . . . . . 3 Weapon 6 | . . 1 . . 5 Highest Loss Streak 7 | . 1 1 . . 7 To Critical Strikes . | . . . . . . Average Backups 6 | 1 6 6 6 7 6 Power . | 1 1 1 1 1 . Propulsion . | . . . . . . Utility 1 | . 1 2 2 3 1 Weapon 3 | . 3 3 3 3 4 Tool/Special . | . . . . . . Unused Backups 6 | . 1 . . . 5 Power . | . . . . . . Propulsion 1 | . . . . . 1 Utility 4 | . 1 . . . 3 Weapon 1 | . . . . . 1 Tool/Special . | . . . . . . Average Slot Usage (%) 81 | . 94 83 85 85 73 Engine 12 | . 14 14 14 14 11 Wheel 12 | . 23 14 14 14 7 Device 19 | . 13 14 14 14 25 Storage 11 | . 14 14 14 14 9 Processor 1 | . . . . . 3 Ballistic Gun 9 | . 16 14 14 14 3 Ballistic Cannon 10 | . . 10 14 14 12 Special Weapon 2 | . 9 1 . . . Peak Build Rating 21 | 6 7 6 13 13 21 Average Rating 10 | 4 6 5 8 13 13 On Entrance 7 | . 6 6 6 13 13 Naked Turns . | . . . . . . Heaviest Build 34 | 11 13 14 21 21 34 Greatest Support 32 | 32 32 10 10 10 20 Greatest Overweight (x) 11 | . 1 1 2 2 11 Average Overweight (x) 1 | . . 1 1 2 1 Largest Inventory Capacity 8 | 8 8 8 8 8 8 Average Capacity 7 | 6 8 8 8 8 8 Most Carried 8 | 5 8 7 7 7 8 Average Carried 6 | 2 6 6 6 7 6 Final Capacity 8 | 8 8 8 8 8 8 Final Carried 7 | 2 7 6 7 7 6 Class Distribution -------------------- 57% | Mutant 42% | Infiltrator-Mutant Dominant Class ---------------- Mutant | -10/Materials Mutant | -10/Mines Mutant | -10/Exiles Mutant | -9/Mines Infiltrator-Mutant | -8/Materials Resources | -11 -10 -10 -10 -9 -8 ----------- Run | Yrd Mat Min Exi Min Mat Matter Collected 961 | 260 108 29 . . 564 Remotely . | . . . . . . Salvage Created 743 | . 102 19 . . 622 Parts 44 | . 12 1 . . 31 Haulers Intercepted 1 | . . . . . 1 Recyclers Shooed . | . . . . . . Parts Field Recycled . | . . . . . . Retrieved Matter . | . . . . . . Parts Self-Destructed . | . . . . . . Prevented . | . . . . . . Kills | -11 -10 -10 -10 -9 -8 ------- Run | Yrd Mat Min Exi Min Mat Combat Hostiles Destroyed 16 | . 3 2 . . 11 Guns 5 | . 3 . . . 2 Cannons 7 | . . 1 . . 6 AOE 4 | . . 1 . . 3 Classes Destroyed 8 | . 4 . . . 4 Worker 1 | . 1 . . . . Builder 2 | . . . . . 2 Hauler 1 | . . . . . 1 Recycler 2 | . . . . . 2 Watcher 1 | . 1 . . . . Swarmer 3 | . 2 . . . 1 Grunt 10 | . 1 2 . . 7 Sentry 3 | . . . . . 3 Best Kill Streak 9 | . 3 2 . . 9 Combat Bots Only 5 | . 2 2 . . 5 Max Kills in Single Turn 5 | . 1 1 . . 5 Gunslinging . | . . . . . . Exploded 2 | . . 1 . . 2 Melee . | . . . . . . Uniques/NPCs Destroyed . | . . . . . . Combat | -11 -10 -10 -10 -9 -8 -------- Run | Yrd Mat Min Exi Min Mat Hostile Shots Fired 263 | . 35 16 . . 212 Missed 68 | . 5 4 . . 59 Hits 195 | . 30 12 . . 153 Projectile 195 | . 30 12 . . 153 Critical Strikes 5 | . . . . . 5 Damage Taken 2355 | . 250 172 . . 1933 Core 652 | . 52 44 . . 556 Absorbed by Shields . | . . . . . . Core Remaining (%) 80 | 100 . . . 61 . Volleys Fired 96 | 3 30 9 . . 54 Largest 2 | 1 2 2 . . 2 Hottest 120 | 40 120 50 . . 74 Shots Fired 138 | 3 39 15 . . 81 Gun 38 | 3 18 6 . . 11 Cannon 73 | . . 6 . . 67 Launcher 6 | . . 3 . . 3 Special 21 | . 21 . . . . Kinetic 103 | . 13 12 . . 78 Thermal 21 | . 21 . . . . Explosive 6 | . . 3 . . 3 Electromagnetic 8 | 3 5 . . . . Robot Hit Streak 6 | 2 4 3 . . 6 Robot Miss Streak 5 | 1 5 2 . . 1 Penetration Max . | . . . . . . Secondary Targets . | . . . . . . Shots Hit Robots 53 | 2 10 8 . . 33 Core Hits 50 | 1 6 5 . . 38 Critical Kills . | . . . . . . Critical Parts Destroyed . | . . . . . . Critical Strikes 5 | . 1 . . . 4 Blast 4 | . . . . . 4 Corrupt 1 | . 1 . . . . Melee Attacks . | . . . . . . Impact . | . . . . . . Slashing . | . . . . . . Piercing . | . . . . . . Sneak Attacks . | . . . . . . Combat Hostiles . | . . . . . . Follow-up Attacks . | . . . . . . Damage Inflicted 1924 | 28 151 234 . . 1511 Guns 248 | 28 149 40 . . 31 Cannons 723 | . . 68 . . 655 Explosions 940 | . . 126 . . 814 Melee . | . . . . . . Ramming 13 | . 2 . . . 11 Kinetic 886 | . 92 108 . . 686 Thermal . | . . . . . . Explosive 389 | . . 126 . . 263 Electromagnetic 636 | 28 57 . . . 551 Impact . | . . . . . . Slashing . | . . . . . . Piercing . | . . . . . . Highest Corruption . | . . . . . . Average Corruption . | . . . . . . Corruption Purged . | . . . . . . Corruption Blocked . | . . . . . . Overload Shots . | . . . . . . Overflow Damage 40 | . . 2 . . 38 Projectiles 24 | . . 2 . . 22 Explosions 16 | . . . . . 16 Melee . | . . . . . . Knockbacks 7 | . . 1 . . 6 Impact . | . . . . . . Kinetic 7 | . . 1 . . 6 Secondary . | . . . . . . Self-Inflicted Damage 83 | . 1 1 . . 81 Shots 6 | . . 1 . . 5 Rammed 6 | . 1 . . . 5 Targets Rammed 6 | . 1 . . . 5 Kicked . | . . . . . . Crushed . | . . . . . . Highest Temperature 66 | . 60 10 . . 66 Average Temperature 20 | . 19 4 . . 25 Received Heat Transfer 936 | . . 99 . . 837 Siege Activations . | . . . . . . Martial Activations . | . . . . . . Shielding Activations . | . . . . . . Robots Disrupted . | . . . . . . Combat Hostiles . | . . . . . . Robots Corrupted . | . . . . . . Combat Hostiles . | . . . . . . Parts Fried 3 | . . . . . 3 Impact Corruptions . | . . . . . . Robots Melted . | . . . . . . Combat Hostiles . | . . . . . . Parts Melted . | . . . . . . Heat Transferred . | . . . . . . Parts Sabotaged . | . . . . . . Parts Stolen . | . . . . . . Parts Stripped . | . . . . . . Power Chain Reactions . | . . . . . . Alert | -11 -10 -10 -10 -9 -8 ------- Run | Yrd Mat Min Exi Min Mat Maximum Alert Level . | . . . . . . Low Security (%) 100 | 100 100 100 . 100 100 Level 1 . | . . . . . . Level 2 . | . . . . . . Level 3 . | . . . . . . Level 4 . | . . . . . . Level 5 . | . . . . . . High Security . | . . . . . . Max Security . | . . . . . . Peak Influence 157 | . 50 62 . . 157 Initial . | . . . . . . Average 23 | . 7 34 . . 37 Influence Increases 576 | . 126 72 . . 378 Destroy 0b10 Robot/C 320 | . 60 40 . . 220 Destroy 0b10 Robot/NC 35 | . 10 . . . 25 Destroy Leader 94 | . 22 10 . . 62 Successful Hack 30 | . 14 . . . 16 Disable Machine 30 | . . . . . 30 Destroy Structure 67 | . 20 22 . . 25 Influence Decreases 576 | . 126 30 42 . 378 Entered New Map 42 | . . . 42 . . Time Decay 357 | . 90 30 . . 237 Lost Part 142 | . 1 . . . 141 Purge Threat 35 | . 35 . . . . Squads Dispatched 4 | . 2 . . . 2 Investigation 2 | . 1 . . . 1 Extermination . | . . . . . . Reinforcement 2 | . 1 . . . 1 Assault . | . . . . . . Garrison . | . . . . . . Intercept . | . . . . . . Searches Triggered . | . . . . . . Construction Impeded . | . . . . . . Haulers Reinforced . | . . . . . . Active Scanning Responses . | . . . . . . Cargo Convoy Interrupts . | . . . . . . Stealth | -11 -10 -10 -10 -9 -8 --------- Run | Yrd Mat Min Exi Min Mat Distress Signals 2 | . . . . . 2 Communications Jammed . | . . . . . . Distress Signals . | . . . . . . Times Spotted 40 | . 8 2 . . 30 Peak Tracking Total 9 | . 5 2 . . 9 Tactical Retreats 8 | . . . . . 8 Traps | -11 -10 -10 -10 -9 -8 ------- Run | Yrd Mat Min Exi Min Mat Traps Triggered 2 | . 1 . . . 1 Indirectly . | . . . . . . Trap Hack Attempts . | . . . . . . Triggered . | . . . . . . Disarmed . | . . . . . . Reprogrammed . | . . . . . . Reused . | . . . . . . Traps Extracted . | . . . . . . Installed . | . . . . . . Triggered . | . . . . . . Machines | -11 -10 -10 -10 -9 -8 ---------- Run | Yrd Mat Min Exi Min Mat Machines Disabled 2 | . . . . . 2 Max in Single Turn 2 | . . . . . 2 Machines Repaired . | . . . . . . Machines Dismantled . | . . . . . . Machines Sabotaged . | . . . . . . Overloaded Fab Kills . | . . . . . . Hacking | -11 -10 -10 -10 -9 -8 --------- Run | Yrd Mat Min Exi Min Mat Machines Accessed 13 | . 7 . 3 1 2 Terminals 9 | . 7 . . . 2 Fabricators . | . . . . . . Repair Stations . | . . . . . . Recycling Units . | . . . . . . Scanalyzers . | . . . . . . Garrison Access . | . . . . . . Total Hacks 45 | . 23 . 17 1 4 Successful 28 | . 9 . 17 1 1 Failed 17 | . 14 . . . 3 Catastrophic 4 | . 2 . . . 2 Database Lockouts . | . . . . . . Manual 12 | . 6 . 1 . 5 Terminals 27 | . 23 . . . 4 Fabricators . | . . . . . . Repair Stations . | . . . . . . Recycling Units . | . . . . . . Scanalyzers . | . . . . . . Garrison Access . | . . . . . . Terminal Hacks 27 | . 9 . 17 1 . Record 17 | . 1 . 16 . . Open Door 1 | . . . . 1 . Terminal Index 1 | . 1 . . . . Unreport Threat 1 | . 1 . . . . Locate Traps 1 | . 1 . . . . Security Status 1 | . 1 . . . . Investigation Status 1 | . 1 . . . . Recall Investigation 1 | . 1 . . . . Zone Layout 2 | . 2 . . . . Proto ID Catalog 1 | . . . 1 . . Fabricator Hacks . | . . . . . . Repair Station Hacks . | . . . . . . Recycling Unit Hacks . | . . . . . . Scanalyzer . | . . . . . . Garrison Access Hacks . | . . . . . . Unauthorized Hacks 1 | . . . . . 1 Terminals 1 | . . . . . 1 Assimilate 1 | . . . . . 1 Fabricators . | . . . . . . Repair Stations . | . . . . . . Recycling Units . | . . . . . . Scanalyzers . | . . . . . . Garrison Access . | . . . . . . Data Cores Recovered . | . . . . . . Used . | . . . . . . Hacking Detections 9 | . 7 . . . 2 Full Trace Events 1 | . . . . . 1 Feedback Events . | . . . . . . Feedback Blocked . | . . . . . . Robot Schematics Acquired . | . . . . . . Robots Built . | . . . . . . Authchips . | . . . . . . Time . | . . . . . . Total Robot Build Rating . | . . . . . . Part Schematics Acquired . | . . . . . . Parts Built . | . . . . . . Authchips . | . . . . . . Time . | . . . . . . Total Part Build Rating . | . . . . . . Parts Repaired . | . . . . . . Time . | . . . . . . Parts Recycled . | . . . . . . Recycled Matter . | . . . . . . Retrieved Matter . | . . . . . . Retrieved Components . | . . . . . . Parts Scanalyzed . | . . . . . . Part Schematics Acquired . | . . . . . . Parts Damaged . | . . . . . . Bothacking | -11 -10 -10 -10 -9 -8 ------------ Run | Yrd Mat Min Exi Min Mat Used RIF Installer . | . . . . . . Robots Hacked . | . . . . . . Non-combat . | . . . . . . Combat . | . . . . . . Robot Hacks Applied . | . . . . . . Relay Couplers Released . | . . . . . . Fabnet Peak Effective % . | . . . . . . Robots Rewired . | . . . . . . Allies Hacked . | . . . . . . Hacks Repelled . | . . . . . . Allies | -11 -10 -10 -10 -9 -8 -------- Run | Yrd Mat Min Exi Min Mat Total Allies . | . . . . . . Largest Group . | . . . . . . Highest-Rated Group . | . . . . . . Highest-Rated Ally . | . . . . . . Total Orders . | . . . . . . Ally Attacks . | . . . . . . Total Damage . | . . . . . . Kills . | . . . . . . Allies Corrupted . | . . . . . . Allies Melted . | . . . . . . Intel | -11 -10 -10 -10 -9 -8 ------- Run | Yrd Mat Min Exi Min Mat Active Infowar (turns) 2003 | . 519 76 221 . 1187 Structural 517 | . . . . . 517 Seismic 1909 | . 519 76 204 . 1110 Cloaking 17 | . . . 17 . . ECM 1171 | . . . . . 1171 Robot Analysis Total . | . . . . . . Derelict Logs Recovered 1 | . . . . 1 . Drone Launches . | . . . . . . Drone Recoveries . | . . . . . . Exploration | -11 -10 -10 -10 -9 -8 ------------- Run | Yrd Mat Min Exi Min Mat Turns Passed 2556 | 70 539 76 346 285 1240 Spaces Moved 1586 | 55 445 53 342 194 497 Core 54 | 12 . . . . 42 Treads 7 | . . . . . 7 Legs . | . . . . . . Wheels 1525 | 43 445 53 342 194 448 Hover . | . . . . . . Flight . | . . . . . . Fastest Speed 50 | 50 80 95 95 110 100 Average Speed 105 | 89 88 95 100 110 126 Slowest Speed 600 | 100 100 95 110 110 600 Overloaded Moves . | . . . . . . Propulsion Burnouts . | . . . . . . Robots Hopped . | . . . . . . Potential Cave-ins . | . . . . . . Cave-ins Triggered . | . . . . . . Exploration Rate (%) 33 | 4 56 14 63 38 27 Regions Visited 5 Branch Regions 3 Pre-discovered Areas . | . . . . . . Known Exits Taken . | . . . . . . Unknown Exits Taken 5 | 1 1 1 1 1 . Scrap Searched . | . . . . . . Spaces Dug 24 | . 19 . . . 5 Terrain Destroyed 71 | . 20 22 . . 29 Melee . | . . . . . . Projectile 33 | . 20 . . . 13 AOE 38 | . . 22 . . 16 Terrain Rammed . | . . . . . . Walls Destroyed . | . . . . . . Machines Disabled . | . . . . . . Actions | -11 -10 -10 -10 -9 -8 --------- Run | Yrd Mat Min Exi Min Mat Total 2276 | 72 506 63 343 265 1027 Wait 512 | . 9 . . 72 431 Move 1581 | 54 444 52 341 193 497 Hop . | . . . . . . Pick Up 33 | 8 10 . 1 . 14 Fast Attach . | . . . . . . Attach 23 | 6 1 1 . . 15 Detach 2 | . . . . . 2 Swap 17 | 1 7 1 1 . 7 Drop 6 | . 4 . . . 2 Fire 96 | 3 30 9 . . 54 Melee . | . . . . . . Ram 6 | . 1 . . . 5 Kick . | . . . . . . Crush . | . . . . . . Escape Stasis . | . . . . . . Rewire . | . . . . . . Trap . | . . . . . . Miscellaneous . | . . . . . . Route ------- -11/Scrapyard -10/Materials -10/Mines -10/Exiles -9/Mines -8/Materials History --------- Turn | Location | Event 2 | -11/Scrapyard | Met Revision 17 7 | -11/Scrapyard | Discovered new exit (range 16) 71 | -11/Scrapyard | Entered Materials 303 | -10/Materials | Build established: Mutant 575 | -10/Materials | Discovered new exit (range 12) 610 | -10/Materials | Entered Mines 619 | -10/Mines | Met a Derelict bent on vengeance 680 | -10/Mines | Deemed a non-threat by the Exiles lab entrance 681 | -10/Mines | Discovered new exit (range 5) 686 | -10/Mines | Entered Exiles 720 | -10/Exiles | Met 8R-AWN 740 | -10/Exiles | Met EX-HEX 788 | -10/Exiles | Met EX-BIN 804 | -10/Exiles | Aligned with FarCom system 805 | -10/Exiles | Given EX-Vault access code 881 | -10/Exiles | Opened EX-Vault 889 | -10/Exiles | Found Cloak of Protection 914 | -10/Exiles | Warned to stay clear of 0b10 Research branches 953 | -10/Exiles | Met EX-DEC 1010 | -10/Exiles | Discovered new exit (range 15) 1032 | -10/Exiles | Left Exiles lab with Cloak of Protection 1032 | -10/Exiles | Entered Mines 1061 | -9/Mines | Learned Materials interactive machine intel 1083 | -9/Mines | Found the Drone Emporium 1305 | -9/Mines | Discovered new exit (range 4) 1317 | -9/Mines | Entered Materials 1317 | -8/Materials | Evolved 4 slots: Power x1, Utility x3 1318 | -8/Materials | Loaded intel: 19 interactive machine locations 1612 | -8/Materials | Build established: Infiltrator-Mutant 1883 | -8/Materials | Lost 4 parts (2p1n1w) 1921 | -8/Materials | Lost 4 parts (1p1n1u1w) 2407 | -8/Materials | Core integrity fell below 50% 2524 | -8/Materials | Core integrity fell below 20% 2550 | -8/Materials | Lost 7 parts (2p1n2u2w) 2557 | -8/Materials | Destroyed by S-10 Pest with Light Assault Rifle Last Messages --------------- 02491_ Acquired 3 matter. 02492_ R-06 Scavenger collects Lgt. Assault Rifle. 02493_ Critical hit (Burn: +37). 02494_ Lgt. Cannon destroyed. 02504_ Imp. Ion Engine destroyed. 02504_ Critical hit (Burn: +37). 02504_ Lgt. Assault Rifle destroyed. 02512_ Connecting with Terminal... 02512_ Slammed into S-10 Pest. 02512_ Destabilizing: System interference. 02512_ Structural Scanner temporarily disabled. 02513_ Slammed into S-10 Pest. 02513_ Structural Scanner destroyed. 02514_ Slammed into S-10 Pest. 02518_ Connecting with Terminal... 02518_ Seismic Detector destroyed. 02519_ Com. Wheel destroyed. 02536_ Slammed into S-10 Pest. 02545_ Slammed into R-06 Scavenger. Map ----- +----------------------------------------------------+ | ??????????????????############ # | | ??????????????????############ ! + | | ??????????????????## [ # # | | ??????????????????## # # | | ??????????????????## ######### ######## | | ??????????????????## """ """ ######### % # # | | ???????????######### """ """ #### ## # # | | ???????????######### """%""" #### " # # | | ???????????## # #### ####"## # | | ???????????## " / #! ##### ######## "T" # | | ???????????## T ####/########## ????#### # | | ???????????## " # ####### ??????####/#### | | ??????????? # # ##### ?###### ## | | ??????????? # # ?###### | | ??????????? # """ + T ^ | | ??????????? # """ s# ###### | | ??????????? # """ # ##### ###### ## | | ??????????? # # ###### ##???#### ### | | ??????????? # """ ### ####?????? ##???#### ### | | ??????????? # """ !### g ########?? ##?????## ### | | ???????????## """ ### # """ #??????????## ### | | ???????????## / Yg # "R" #???????????#+#### | | ???????????##### #####ss # " " #??????????? # | | ????????????########## # #????????????????? | | ???????# ###### # +????????????????? | | ????????????""" + a w @ #????????????????? | | ????????????""" ########## #????????????????? | | ????????""???????????############????????????????? | | ????????""???????????????????????????????????????? | | ????????"T???????????????????????????????????????? | | ????????""???????????????????????????????????????? | | ????????""????????"""????????????????????????????? | | ??????????????????"Y"????????????????????????????? | | ????????????w?????"?"????????????????????????"""?? | | ?????????????????????????????????????????????"T"?? | | ?????????????????????????????????????????????????? | | ?????????????????????????????????????????????????? | | ?????????????????????????????????????????????????? | | ?????????????????????????????????????????????????? | | ?????????????????????????????????????????????????? | | ?????????????????????????????????????????????????? | | ?????????????????????????????????????????????????? | | ?????????????????????????????????????????????????? | | ?????????????????????????????????????????????????? | | ?????????????????????????????????????????????????? | | ?????????????????????????????????????????????????? | | ?????????????????????????????????????????????????? | | ?????????????????????????????????????????????????? | | ?????????????????????????????????????????????????? | | ?????????????????????????????????????????????????? | +----------------------------------------------------+ Best States ------------- Heat Dissipation 31 Energy Generation 15 Energy Capacity 275 Matter Stores 300 Matter Capacity 300 Sight Range 16 Terrain Scan Density 10 ECM Strength 1 Cloak Strength 5 Evasion (%) 50 Targeting Accuracy 5 Recoil Reduction 1 Item Schematics ----------------- None Robot Schematics ------------------ None Fabricated ------------ Nothing Repaired ---------- Nothing Alien Tech Used ----------------- None Achievements -------------- GoHome() Challenges ------------ None Game ------ Seed PulseDispersalConstruct Manual? 0 Play Time 00:48:27 Cumulative 5.3 hours Start 2025.05.22 @ 23:43:52 End 2025.05.23 @ 00:31:42 Sessions 1 Manual Loads 0 Difficulty Rogue Special Mode None Game No. 5 Rogue 4 Adventurer 1 Explorer 0 Win Type - Total 0 Types 0/0/0/0/0/0/0/0/0/0 Lore% 7 Gallery% 8 Achievement% 10 Wizard Run 0 Options --------- Layout 1 ASCII 0 Keyboard 0 Movement Arrows Keybinds 0 Fullscreen 1 Font 24/Smallcaps Map View 50x35 Zoom Use 0% Tactical HUD 1 Map Filters NONE Filters NONE Steam 1 RUN: 9ee2247f-8a51-4bbc-b00e-4c0a52344dda